bitfinex/quotes_ETHUSD_20250622
["timestamp","ask_amount","ask_price","bid_price","bid_amount"]
[1750554862762,1.3396,2302.4,2301.7,0.7837]
[1750554863006,0.55,2301.8,2300.9,0.7837]
[1750554863159,0.55,2301.6,2300.9,0.7837]
[1750554863362,0.55,2301.6,2301.3,4.34533806]
[1750554863681,0.55,2301.2,2300.4,5.13060218]
[1750554863882,2.18187209,2301.1,2301.0,4.34593654]
[1750554864086,0.55,2301.0,2300.4,0.7837]
[1750554864269,0.04387209,2300.9,2300.8,4.34631432]
[1750554864468,10.59387209,2301.0,2300.4,0.7837]
[1750554864673,0.04387209,2300.9,2300.4,2.05620177]
[1750554864871,10.0,2300.7,2300.0,0.7837]
[1750554865077,10.0,2300.7,2300.4,4.3470375]
[1750554865078,2.18187209,2300.6,2300.4,4.3470375]
[1750554865371,0.55,2300.5,2299.3,6.48707461]
[1750554865578,0.55,2300.3,2299.8,4.34805603]
[1750554865797,0.04387209,2300.2,2299.8,4.34805603]
[1750554866093,2.138,2300.1,2300.0,4.34781733]
[1750554866295,2.138,2300.1,2299.8,4.34804465]
[1750554866478,0.04387209,2300.0,2299.4,12.7266044]
[1750554866665,7.63887209,2300.0,2299.6,4.3484236]
[1750554866866,0.55,2299.8,2299.1,0.7837]
[1750554867067,0.55,2299.8,2298.8,0.7837]
[1750554867068,0.55,2299.6,2298.8,0.7837]
[1750554867299,2.18187209,2299.5,2299.1,4.34941778]
[1750554867483,2.18187209,2299.5,2298.9,4.34990647]
[1750554867484,1.3396,2299.4,2299.3,4.34914974]
[1750554867696,1.3396,2299.4,2299.1,4.34940174]
[1750554867895,1.3396,2299.4,2299.1,4.34938989]
[1750554867896,0.04387209,2299.3,2299.1,4.34938989]
[1750554868087,7.63887209,2299.3,2298.6,4.3504742]
[1750554868398,0.55,2299.2,2298.7,1.27291742]
[1750554868603,11.3396,2299.4,2299.1,4.3493611]
[1750554868604,10.7896,2299.4,2299.1,4.3493611]
[1750554868803,7.594,2299.2,2299.1,4.3493611]
[1750554869174,7.63787209,2299.2,2299.1,4.3493611]
[1750554869478,0.55,2298.9,2297.5,0.79]
[1750554869810,10.0,2298.7,2297.5,0.79]
[1750554870097,30.0,2298.4,2297.9,4.35169928]
[1750554870323,30.0,2298.4,2297.5,5.14241787]
[1750554870324,0.55,2298.1,2297.5,0.79]
[1750554870470,10.55797209,2298.0,2296.9,0.79]
[1750554870674,0.04387209,2297.9,2297.5,4.3525442]
[1750554870910,0.04387209,2297.9,2297.0,5.62747558]
[1750554871115,19.735,2298.0,2297.9,4.35179946]
[1750554872076,19.735,2298.0,2297.8,4.35196163]
[1750554872341,19.735,2298.0,2297.9,4.35179946]
[1750554872762,4.35073884,2298.5,2297.9,4.35179946]
[1750554872763,2.14,2298.9,2298.2,4.35123139]
[1750554872916,9.3238574,2300.1,2298.2,4.35123139]
[1750554872917,9.739,2299.3,2299.1,4.34952807]
[1750554873209,13.05,2299.2,2299.1,4.34952807]
[1750554873426,40.0,2299.1,2298.0,0.79]
[1750554873572,40.0,2298.4,2297.8,4.35192814]
[1750554873776,2.18387209,2298.3,2297.7,4.35217826]
[1750554873982,9.78287209,2298.3,2298.0,4.35159512]
[1750554874181,0.55,2298.2,2297.8,4.35198349]
[1750554874390,0.55,2298.0,2297.6,4.35234125]
[1750554874673,0.55,2297.8,2297.2,5.14310118]
[1750554874877,0.55,2297.8,2296.8,0.8266]
[1750554874878,9.78287209,2297.7,2296.8,0.8266]
[1750554875086,0.04387209,2297.6,2297.2,4.35299168]
[1750554875284,0.55,2297.5,2297.1,4.35322967]
[1750554875485,0.04387209,2297.4,2296.8,0.8266]
[1750554875687,0.55,2297.5,2296.9,4.3536941]
[1750554875908,10.0,2297.3,2297.0,4.35336727]
[1750554876109,10.55,2297.1,2296.5,5.18104066]
[1750554876405,10.55,2297.1,2296.2,4.35490417]
[1750554876406,0.55,2296.9,2296.8,4.35388366]
[1750554876581,2.14,2296.9,2296.7,4.35402662]
[1750554876783,10.59387209,2296.8,2296.3,4.35472598]
[1750554877006,7.64387209,2296.7,2295.8,4.35578012]
[1750554877209,0.55,2296.5,2295.7,0.8266]
[1750554877410,0.7589,2296.5,2296.4,4.35464204]
[1750554877709,12.14,2296.6,2296.3,4.35480971]
[1750554877888,0.04387209,2296.5,2296.3,4.35480971]
[1750554878298,0.04387209,2296.5,2296.4,4.35464204]
[1750554878500,12.14,2296.6,2296.5,4.35445242]
[1750554879099,2.141,2296.6,2296.5,4.35445242]
[1750554879617,2.18487209,2296.6,2296.5,4.35445242]
[1750554879912,2.18487209,2296.6,2295.3,0.8302]
[1750554879913,0.7564,2296.4,2295.3,0.8302]
[1750554880110,10.55,2296.2,2295.3,5.18689302]
[1750554880312,2.17987209,2296.1,2295.3,0.8302]
[1750554880511,10.97219598,2296.1,2295.3,0.8302]
[1750554880818,11.80390893,2296.0,2295.7,4.35585875]
[1750554881026,11.80390893,2296.0,2295.7,4.35596985]
[1750554881027,0.04387209,2295.9,2295.7,4.35596985]
[1750554881196,1.22572346,2295.9,2295.7,4.35596985]
[1750554881517,1.16456353,2295.8,2295.7,4.35596985]
[1750554882230,1.16456353,2295.8,2295.7,5.18616985]
[1750554882399,1.16456353,2295.8,2295.7,6.14040076]
[1750554886811,10.446,2297.0,2295.7,6.14040076]
[1750554886812,2.138,2297.2,2297.1,4.35331504]
[1750554889718,0.55,2297.1,2296.6,7.606]
[1750554890012,0.04387209,2297.0,2296.8,4.35377524]
[1750554890214,0.04387209,2297.0,2296.9,4.3536941]
[1750554890510,0.04387209,2297.0,2296.8,4.35378672]
[1750554890913,0.04387209,2297.0,2296.4,4.35464204]
[1750554891116,1.3426,2296.9,2296.5,0.4354642]
[1750554891301,0.55,2296.7,2296.5,4.35445047]
[1750554891500,2.138,2296.7,2296.6,4.35426282]
[1750554891815,2.688,2296.7,2296.6,4.35426282]
[1750554892007,2.688,2296.7,2296.5,4.35445047]
[1750554892208,0.04387209,2296.6,2296.4,4.3545827]
[1750554892614,0.04387209,2296.6,2296.3,4.35480278]
[1750554892914,0.04387209,2296.6,2296.4,4.35464204]
[1750554893294,10.04387209,2296.6,2296.3,4.35472046]
[1750554893599,10.0,2296.6,2296.3,4.35476068]
[1750554893802,10.0,2296.6,2295.7,0.95423091]
[1750554893803,0.7926,2296.3,2295.7,0.95423091]
[1750554894112,2.18187209,2296.2,2295.7,0.95423091]
[1750554894298,2.18187209,2296.2,2296.1,4.35512063]
[1750554895027,2.138,2296.2,2296.1,4.35512063]
[1750554899228,2.138,2296.2,2295.7,0.95423091]
[1750554899427,2.138,2296.2,2295.7,4.35582499]
[1750554899428,10.59387209,2296.1,2295.7,4.35582499]
[1750554899723,0.7784,2296.0,2295.8,4.35576394]
[1750554899926,0.04387209,2295.9,2295.8,4.35576394]
[1750554900129,0.7784,2296.0,2295.9,4.3555904]
[1750554900339,2.138,2296.4,2296.1,4.355211]
[1750554900505,12.138,2296.4,2296.2,4.35487371]
[1750554900712,10.457,2296.9,2296.2,0.43548737]
[1750554900910,0.7784,2297.8,2297.1,4.35331504]
[1750554901136,0.04387209,2297.8,2297.5,4.35255712]
[1750554901422,0.8067,2298.1,2297.5,4.35255712]
[1750554901423,2.9447,2298.1,2297.5,4.35255712]
[1750554901608,10.04387209,2298.0,2297.5,4.35255712]
[1750554901809,2.9447,2298.1,2297.5,4.35255712]
[1750554902128,2.9447,2298.1,2297.5,4.39608014]
[1750554902338,10.04387209,2298.0,2297.5,4.35255712]
[1750554902523,10.0,2298.0,2297.5,4.35255712]
[1750554902715,0.04387209,2297.9,2297.5,4.35255712]
[1750554905346,10.0,2297.5,2296.8,7.605]
[1750554905506,10.7729,2297.5,2297.4,4.35274658]
[1750554905835,11.1084271,2297.6,2297.5,4.35255712]
[1750554906041,11.1084271,2297.6,2296.8,8.70099386]
[1750554906042,0.55,2297.5,2296.8,1.09599386]
[1750554906242,0.04387209,2297.4,2296.7,8.3652]
[1750554906540,0.04387209,2297.4,2297.3,4.35293605]
[1750554906841,0.04387209,2297.4,2297.1,4.35320624]
[1750554907143,4.90380589,2296.9,2296.3,4.35473554]
[1750554907373,10.7729,2296.7,2296.4,4.35452579]
[1750554907508,0.04387209,2296.6,2296.3,4.35476553]
[1750554907708,0.04387209,2296.6,2296.5,4.35435249]
[1750554907978,0.55,2296.5,2296.2,4.35486773]
[1750554908108,0.04387209,2296.4,2295.9,4.3555904]
[1750554908310,0.04387209,2296.6,2296.2,4.35490758]
[1750554908510,2.688,2297.0,2296.0,7.603]
[1750554908732,12.18187209,2296.9,2296.6,4.35425226]
[1750554908916,10.55,2296.8,2296.0,7.603]
[1750554909116,0.04387209,2296.7,2296.4,4.35454035]
[1750554909347,0.04387209,2296.7,2296.6,4.35426282]
[1750554909559,0.04387209,2296.7,2296.2,4.35500708]
[1750554909707,0.55,2296.6,2296.4,4.35460146]
[1750554909911,0.04387209,2296.5,2296.4,4.35460146]
[1750554910143,0.59387209,2296.7,2296.3,4.35481039]
[1750554910470,0.59387209,2296.7,2295.7,8.03540277]
[1750554910471,0.55,2296.5,2296.0,4.35534168]
[1750554910757,0.55,2296.5,2295.3,4.87543209]
[1750554910758,0.55,2296.0,2295.9,4.3555904]
[1750554910917,2.135,2296.2,2296.1,4.35504212]
[1750554911582,10.0,2296.3,2295.8,0.7764]
[1750554911874,10.0,2296.3,2295.8,4.35571567]
[1750554911875,0.7933,2296.1,2295.8,4.35571567]
[1750554912075,0.59387209,2296.0,2295.2,4.35679902]
[1750554912232,10.0,2295.8,2295.6,4.35604129]
[1750554912492,2.17887209,2295.7,2295.0,4.35714408]
[1750554912666,12.72887209,2295.7,2295.6,4.3561596]
[1750554912864,2.135,2295.7,2295.5,4.3562555]
[1750554913033,2.17887209,2295.7,2295.5,4.3562555]
[1750554913227,2.72887209,2295.7,2295.6,4.3561596]
[1750554913656,2.72887209,2295.7,2295.5,4.3562687]
[1750554913863,2.135,2295.7,2295.6,4.3561596]
[1750554914036,2.135,2295.8,2295.7,4.35596985]
[1750554914361,2.685,2295.8,2295.7,4.35596985]
[1750554914773,10.55,2295.7,2294.9,0.7764]
[1750554914947,0.55,2295.5,2294.9,0.7764]
[1750554915140,0.04387209,2295.4,2295.0,4.35722678]
[1750554915350,2.136,2295.3,2295.2,4.35691878]
[1750554916573,4.3541882,2296.7,2295.2,4.35691878]
[1750554916574,2.136,2295.7,2295.6,4.3561596]
[1750554916880,5.43141293,2296.5,2295.6,4.3561596]
[1750554916881,0.8111,2296.2,2296.0,4.35523282]
[1750554917087,0.8111,2296.2,2296.1,4.355211]
[1750554917393,2.136,2296.2,2296.1,4.355211]
[1750554918260,2.136,2296.2,2296.0,4.35529955]
[1750554918462,0.04387209,2296.1,2295.5,4.35634937]
[1750554918669,0.04387209,2296.1,2295.4,0.8034]
[1750554918875,7.606,2296.0,2295.9,4.35554806]
[1750554919248,7.64987209,2296.0,2295.8,4.35570582]
[1750554919675,7.64987209,2296.0,2295.7,4.35588755]
[1750554919879,7.64987209,2296.0,2295.8,4.35575426]
[1750554920086,7.64987209,2296.0,2295.4,0.8034]
[1750554920449,0.04387209,2295.9,2295.4,0.8034]
[1750554920784,0.04387209,2295.9,2295.6,4.35608564]
[1750554920951,0.55,2295.8,2295.5,4.35629823]
[1750554921151,2.17987209,2295.7,2295.5,4.35629823]
[1750554921450,2.17987209,2295.7,2295.6,4.3561596]
[1750554922148,2.136,2295.7,2295.6,4.3561596]
[1750554922786,2.136,2295.7,2295.4,4.35648524]
[1750554922947,2.136,2295.7,2295.6,4.3561596]
[1750554923381,2.136,2295.7,2295.6,5.22740922]
[1750554923990,0.04387209,2296.0,2295.9,4.3555904]
[1750554924164,2.136,2296.0,2295.9,4.3555904]
[1750554924365,2.136,2296.0,2295.7,4.35596985]
[1750554924688,1.3367,2295.8,2295.5,4.35634399]
[1750554924902,0.55,2295.4,2294.6,0.7596]
[1750554925087,2.17987209,2295.3,2295.2,4.35678794]
[1750554925292,2.17987209,2295.3,2294.7,4.35786813]
[1750554925293,2.136,2295.3,2294.7,4.35786813]
[1750554925490,2.136,2295.3,2295.2,4.35691878]
[1750554925655,2.136,2295.3,2295.0,4.35723775]
[1750554926195,2.136,2295.3,2295.2,4.35691878]
[1750554927422,0.55,2295.2,2294.6,0.7596]
[1750554927573,0.7867,2295.5,2295.0,4.35729847]
[1750554927776,2.136,2295.5,2295.4,4.35643835]
[1750554929688,2.136,2295.5,2295.4,5.22775358]
[1750554929869,2.136,2296.0,2295.9,4.3555904]
[1750554930697,2.136,2296.0,2295.8,4.35568284]
[1750554931015,2.136,2296.0,2295.9,4.3555904]
[1750554931416,2.136,2296.1,2295.5,4.35627788]
[1750554931590,0.84247209,2296.0,2295.6,4.35598925]
[1750554931795,10.0,2295.7,2295.3,4.35663017]
[1750554932127,2.17987209,2295.6,2295.3,4.35663017]
[1750554932528,2.17987209,2295.6,2295.4,4.35652172]
[1750554932737,2.17987209,2295.6,2295.4,4.35652764]
[1750554933341,2.136,2295.6,2295.5,4.35634937]
[1750554934243,2.136,2296.1,2295.6,4.3561596]
[1750554934530,2.136,2296.1,2296.0,4.35540069]
[1750554935732,2.17987209,2296.1,2296.0,4.35540069]
[1750554936029,2.136,2296.1,2295.3,5.12329745]
[1750554936334,2.136,2296.1,2296.0,4.35540069]
[1750554937240,2.136,2296.1,2295.8,4.35567014]
[1750554937399,2.136,2296.1,2296.0,4.35540069]
[1750554937595,1.12083119,2296.5,2296.1,4.355211]
[1750554937795,1.0769591,2296.5,2296.4,4.35464204]
[1750554938129,1.0769591,2296.5,2296.4,4.7944608]
[1750554938300,1.0769591,2296.5,2296.4,4.35464204]
[1750554938495,1.0769591,2296.5,2296.0,0.7667]
[1750554938703,0.04387209,2296.4,2296.3,4.35483168]
[1750554939026,1.0769591,2296.5,2296.4,4.35464204]
[1750554941309,1.0769591,2296.5,2296.4,5.22558941]
[1750554941503,0.04387209,2297.4,2297.3,4.35293605]
[1750554941838,3.00927209,2297.5,2297.2,4.35312013]
[1750554942133,14.99585084,2297.5,2297.0,4.35338816]
[1750554942329,40.0,2297.3,2296.7,4.35403205]
[1750554942530,0.8154,2297.0,2296.6,4.35415497]
[1750554942729,2.74387209,2296.9,2296.1,0.7614]
[1750554943030,2.74387209,2296.9,2296.7,4.35403358]
[1750554943628,2.74387209,2296.9,2296.1,0.7614]
[1750554943828,2.74387209,2296.9,2296.2,10.0435447]
[1750554944039,30.0,2296.8,2296.1,2.64431472]
[1750554944242,40.0,2296.4,2296.1,4.35509615]
[1750554944409,0.04387209,2296.3,2296.0,4.35539229]
[1750554944600,0.04387209,2296.3,2296.2,4.35502133]
[1750554944796,0.59387209,2296.3,2295.5,0.7614]
[1750554945125,4.3555904,2295.9,2294.9,5.11883434]
[1750554945311,10.8154,2296.1,2294.9,5.11883434]
[1750554945312,0.55,2295.7,2294.9,0.7614]
[1750554945506,0.8154,2295.6,2295.5,4.35634937]
[1750554946027,0.8154,2295.6,2295.4,4.35649576]
[1750554946221,0.8154,2295.6,2295.3,4.35665422]
[1750554946648,0.55,2295.5,2295.2,4.35685454]
[1750554946803,0.55,2295.5,2294.4,4.35828617]
[1750554946804,0.55,2295.3,2294.8,4.35767397]
[1750554947118,2.19387209,2295.2,2294.9,4.35730954]
[1750554947518,0.8154,2295.1,2294.9,4.35730954]
[1750554948636,0.8154,2295.1,2294.7,4.35780283]
[1750554948637,7.68687209,2295.2,2295.0,4.35729772]
[1750554948836,2.15,2295.1,2295.0,4.35729772]
[1750554949007,0.8154,2295.4,2294.5,4.35822429]
[1750554949208,0.8154,2295.4,2294.3,0.42506098]
[1750554949209,2.15,2295.3,2294.7,0.8079]
[1750554949439,2.15,2295.3,2294.8,4.35757041]
[1750554949440,12.19387209,2295.3,2294.8,4.35757041]
[1750554949626,12.15,2295.3,2294.8,4.35757041]
[1750554949833,0.04387209,2295.2,2294.4,0.8079]
[1750554950144,0.04387209,2295.2,2294.8,4.35767722]
[1750554950938,10.7773,2294.8,2294.2,4.58441594]
[1750554951128,0.55,2294.4,2294.2,0.2256887]
[1750554951446,0.82117209,2294.3,2294.2,0.2256887]
[1750554951813,0.82117209,2294.3,2294.2,4.58450658]
[1750554952014,34.56041721,2294.3,2294.2,0.2256887]
[1750554952263,2.40941721,2294.3,2294.2,0.2256887]
[1750554952429,1.3273,2294.3,2294.2,0.2256887]
[1750554952638,2.151,2294.3,2294.2,4.58450658]
[1750554953844,2.9283,2294.7,2294.6,4.35805804]
[1750554954054,0.7773,2295.4,2295.0,4.35729847]
[1750554954348,30.0,2295.0,2294.6,4.35791991]
[1750554954555,0.87257209,2294.9,2294.3,5.1726079]
[1750554954849,40.0,2294.8,2294.5,4.35811907]
[1750554955144,0.55,2294.6,2294.3,4.35862129]
[1750554955361,2.19487209,2294.5,2294.2,0.2256887]
[1750554955514,1.3787,2294.4,2294.2,0.2256887]
[1750554955715,0.04387209,2294.3,2294.2,4.58449955]
[1750554955956,9.816,2294.5,2294.3,4.3586279]
[1750554956127,9.816,2294.5,2294.4,4.35843793]
[1750554956525,2.151,2294.5,2294.4,4.35843793]
[1750554957359,2.151,2294.5,2294.2,4.58450634]
[1750554957360,12.151,2294.5,2294.2,4.58450634]
[1750554957557,2.151,2294.5,2294.2,0.2256887]
[1750554957966,0.8287,2294.7,2294.6,4.35805804]
[1750554958132,20.6437,2294.7,2294.6,4.35805804]
[1750554958451,15.37015603,2295.1,2294.8,4.35758658]
[1750554958452,8.4957,2295.0,2294.8,4.35758658]
[1750554958658,2.151,2294.9,2294.8,4.35758658]
[1750554958816,10.463,2295.1,2295.0,4.35729847]
[1750554959952,10.463,2295.1,2294.8,4.35758871]
[1750554960163,0.04387209,2295.0,2294.3,0.8221]
[1750554960381,0.55,2294.9,2294.3,0.8221]
[1750554960578,0.04387209,2294.8,2294.3,0.8221]
[1750554960786,32.151,2294.7,2294.2,0.2256887]
[1750554961069,35.6974279,2294.3,2294.2,0.2256887]
[1750554961286,47.37901749,2294.3,2294.2,0.2256887]
[1750554961433,57.37901749,2294.3,2294.2,0.2256887]
[1750554962066,10.55,2294.5,2294.2,0.2256887]
[1750554962377,41.3388,2294.3,2294.2,0.2256887]
[1750554962582,11.3388,2294.3,2294.2,0.2256887]
[1750554963365,46.13956887,2294.3,2294.2,0.2256887]
[1750554963570,46.63956887,2294.3,2294.2,0.2256887]
[1750554963740,51.03391774,2294.3,2294.2,0.2256887]
[1750554964142,60.87791774,2294.3,2294.2,0.2256887]
[1750554964862,60.84661774,2294.3,2294.2,0.2256887]
[1750554965674,11.2575,2294.3,2294.2,0.2256887]
[1750554965981,20.6145,2294.3,2294.2,0.2256887]
[1750554966478,20.6145,2294.3,2294.2,4.58450658]
[1750554966837,21.1645,2294.3,2294.2,0.2256887]
[1750554967271,19.857,2294.3,2294.2,0.2256887]
[1750554967594,20.407,2294.3,2294.2,0.2256887]
[1750554968863,22.52345,2294.3,2294.2,0.2256887]
[1750554969378,20.407,2294.3,2294.2,0.2256887]
[1750554971287,54.7656279,2294.3,2294.2,0.2256887]
[1750554971483,55.5579279,2294.3,2294.2,0.2256887]
[1750554971709,0.7923,2294.2,2293.1,0.7882]
[1750554971865,1.65880209,2294.1,2293.1,0.7882]
[1750554972056,0.55,2293.6,2293.2,4.36062049]
[1750554972326,0.55,2293.4,2293.1,4.36084602]
[1750554972465,0.55,2293.2,2292.8,4.36147413]
[1750554972688,0.55,2293.2,2291.7,14.83157129]
[1750554972689,40.0,2292.9,2292.1,0.7882]
[1750554972924,40.0,2292.9,2291.8,0.7882]
[1750554972925,0.55,2292.5,2291.8,0.7882]
[1750554973087,0.55,2292.3,2292.1,4.36263378]
[1750554973399,2.178,2292.2,2292.1,4.36274517]
[1750554973606,2.178,2292.2,2291.9,4.58875067]
[1750554973906,0.7923,2292.6,2291.9,4.58875067]
[1750554973907,0.7923,2292.6,2291.9,0.2256887]
[1750554974198,2.178,2292.5,2292.4,4.36215582]
[1750554974558,10.0,2292.8,2291.9,5.12655939]
[1750554974883,2.178,2292.7,2292.6,4.36185989]
[1750554975590,2.178,2292.7,2292.3,4.36242661]
[1750554975793,0.04387209,2292.6,2291.9,1.0153887]
[1750554975987,2.178,2292.7,2292.3,4.36227283]
[1750554976189,0.04387209,2292.6,2291.9,11.0153887]
[1750554976358,2.178,2292.7,2292.6,4.36185989]
[1750554977103,2.178,2292.7,2292.5,4.36201568]
[1750554977306,2.178,2292.7,2291.9,1.0153887]
[1750554977459,0.59387209,2292.6,2292.3,4.36232697]
[1750554978092,8.31587209,2292.6,2292.2,4.36247931]
[1750554978294,0.04387209,2292.5,2292.2,4.36247931]
[1750554978466,0.04387209,2292.5,2292.3,4.36240876]
[1750554978808,1.29741802,2292.5,2291.9,5.37852883]
[1750554979159,40.55,2292.4,2291.9,0.2256887]
[1750554979406,0.55,2292.2,2291.9,0.2256887]
[1750554979557,2.22187209,2292.1,2291.9,4.58873788]
[1750554980009,2.22187209,2292.1,2291.9,0.2256887]
[1750554980010,12.22187209,2292.1,2291.9,0.2256887]
[1750554980210,0.55,2292.0,2291.9,0.2256887]
[1750554980669,23.45530174,2292.0,2291.9,0.2256887]
[1750554980861,49.0923,2292.0,2291.9,0.2256887]
[1750554981065,53.45530174,2292.0,2291.9,0.2256887]
[1750554981892,41.3763,2292.0,2291.9,0.2256887]
[1750554982087,14.9396096,2292.5,2292.3,4.36243074]
[1750554982088,2.179,2292.4,2292.3,4.36243074]
[1750554982398,9.94787209,2292.4,2291.9,4.58877057]
[1750554982590,0.55,2292.2,2292.1,4.36277625]
[1750554982772,8.31887209,2292.2,2292.1,4.36281139]
[1750554982974,7.725,2292.2,2292.1,4.36281139]
[1750554983371,7.725,2292.2,2291.9,0.2256887]
[1750554983372,0.8263,2292.0,2291.9,0.2256887]
[1750554983590,19.14417209,2292.0,2291.9,0.2256887]
[1750554983778,19.1003,2292.0,2291.9,0.2256887]
[1750554984713,0.99478721,2292.2,2291.9,4.58888081]
[1750554984892,0.99478721,2292.2,2291.9,4.58881018]
[1750554984893,0.04387209,2292.1,2291.9,4.58881018]
[1750554985206,2.179,2292.2,2292.1,4.36281139]
[1750554985498,2.179,2292.3,2292.2,4.36262106]
[1750554985801,0.55,2292.2,2291.9,0.2256887]
[1750554985987,0.04387209,2292.1,2291.9,0.2256887]
[1750554986189,0.55,2292.0,2291.9,0.2256887]
[1750554986498,8.27,2292.0,2291.9,0.2256887]
[1750554987079,18.27,2292.0,2291.9,0.2256887]
[1750554987395,12.34010758,2292.0,2291.9,0.2256887]
[1750554987602,20.448,2292.0,2291.9,0.2256887]
[1750554987802,1.84686148,2292.5,2292.2,4.36262106]
[1750554988013,30.0,2292.3,2291.9,4.58879172]
[1750554988170,0.55,2292.1,2291.9,0.2256887]
[1750554988372,0.04387209,2292.0,2291.9,0.2256887]
[1750554988703,0.55,2292.2,2292.0,4.36300174]
[1750554989004,1.07876148,2292.5,2292.4,4.36224044]
[1750554989303,1.07876148,2292.5,2292.4,5.14614044]
[1750554989966,2.179,2293.1,2292.4,0.7839]
[1750554990187,2.179,2293.1,2292.7,4.36158074]
[1750554990396,7.73,2293.0,2292.8,4.36147941]
[1750554991195,7.73,2293.0,2292.7,4.36158487]
[1750554991424,7.73,2293.0,2292.7,4.36158868]
[1750554991620,2.179,2293.1,2292.8,4.36147941]
[1750554992350,2.179,2293.1,2293.0,4.36109899]
[1750554992482,2.179,2293.5,2293.0,0.7839]
[1750554992842,30.0,2293.4,2293.0,4.36095269]
[1750554993028,30.0,2293.3,2293.0,4.36095269]
[1750554993255,8.272,2293.2,2292.8,4.36137461]
[1750554993527,3.8272,2293.1,2292.8,4.36137461]
[1750554993827,10.55,2292.7,2291.9,4.58874825]
[1750554994030,10.55,2292.5,2292.2,4.36260971]
[1750554994190,9.94687209,2292.4,2292.2,4.36260971]
[1750554994521,0.04387209,2292.3,2292.2,4.36260971]
[1750554994988,10.0,2292.7,2292.6,4.36185989]
[1750554995188,2.179,2292.7,2292.6,4.36185989]
[1750554995419,0.55,2293.1,2292.7,4.36149962]
[1750554995420,2.179,2293.0,2292.7,4.36149962]
[1750554995621,0.04387209,2292.9,2292.8,4.36143405]
[1750554996631,0.04387209,2292.9,2292.6,4.36175154]
[1750554996810,0.04387209,2292.9,2292.8,4.36147941]
[1750554997138,2.179,2292.9,2292.7,4.36157305]
[1750554997338,2.179,2292.9,2292.8,4.36147941]
[1750554997497,2.179,2292.9,2292.6,4.36184367]
[1750554997691,10.55,2292.8,2292.5,4.36192044]
[1750554997905,0.04387209,2292.7,2292.6,4.36185989]
[1750554998622,0.04387209,2292.7,2292.4,4.36212829]
[1750554999247,7.721,2292.6,2292.5,4.36205016]
[1750554999538,8.30887209,2292.7,2292.6,4.36185989]
[1750554999737,10.444,2292.7,2292.5,4.36195605]
[1750554999939,10.444,2292.7,2292.4,4.36214755]
[1750555000527,12.36731,2292.7,2292.4,4.36214755]
[1750555000723,12.36731,2292.7,2292.4,4.36223712]
[1750555000925,10.0,2292.4,2291.9,0.2256887]
[1750555001120,0.55,2292.2,2291.9,0.2256887]
[1750555001313,2.22287209,2292.1,2291.9,0.2256887]
[1750555001636,2.22287209,2292.1,2291.9,4.58888052]
[1750555002440,0.04387209,2292.1,2292.0,4.36300174]
[1750555002745,0.04387209,2292.4,2292.0,0.7552]
[1750555002941,7.75387209,2292.4,2292.1,4.36278917]
[1750555003239,7.75387209,2292.4,2292.1,4.362735]
[1750555003442,30.0,2292.3,2292.0,4.36300091]
[1750555003640,0.04387209,2292.2,2291.9,4.58880169]
[1750555003837,0.04387209,2292.2,2292.0,4.3629989]
[1750555004154,0.04387209,2292.2,2291.9,0.2256887]
[1750555004339,0.55,2292.0,2291.9,0.2256887]
[1750555004531,3.6191593,2292.0,2291.9,0.2256887]
[1750555004909,17.98216104,2292.0,2291.9,0.2256887]
[1750555005119,17.93828895,2292.0,2291.9,0.2256887]
[1750555006015,47.93828895,2292.0,2291.9,0.2256887]
[1750555006348,48.72078895,2292.0,2291.9,0.2256887]
[1750555006934,48.93363548,2292.0,2291.9,0.2256887]
[1750555007238,48.93363548,2292.0,2290.7,5.12050374]
[1750555007239,0.55,2291.3,2290.7,5.12050374]
[1750555007442,9.94787209,2291.2,2290.8,4.36526495]
[1750555007744,30.0,2291.1,2290.8,4.36521744]
[1750555007948,9.904,2291.2,2290.9,4.36509668]
[1750555007949,7.75187209,2291.0,2290.9,4.36509668]
[1750555008243,7.708,2291.0,2290.9,4.36509668]
[1750555009151,7.708,2291.0,2290.8,4.36524399]
[1750555009514,7.708,2291.0,2290.7,4.36540415]
[1750555009745,17.708,2291.0,2290.7,4.36540415]
[1750555009920,7.708,2291.0,2290.7,4.36540415]
[1750555010126,17.708,2291.0,2290.7,4.36540415]
[1750555010342,7.708,2291.0,2290.8,4.3652676]
[1750555010910,0.84857209,2290.9,2290.2,0.8159]
[1750555011315,0.84857209,2290.9,2290.6,4.36552797]
[1750555011316,0.55,2290.8,2290.6,4.36552797]
[1750555011524,0.55,2290.8,2290.4,4.3659059]
[1750555011728,9.93387209,2290.7,2290.5,4.36572044]
[1750555011934,0.55,2290.6,2290.3,4.36605541]
[1750555012120,0.04387209,2290.5,2290.1,4.36649436]
[1750555012459,0.55,2290.3,2290.1,4.36659672]
[1750555012683,2.196,2290.2,2290.1,4.36659672]
[1750555013165,2.196,2290.2,2289.7,0.8159]
[1750555013342,2.196,2290.2,2289.5,0.2256887]
[1750555013343,0.55,2290.0,2289.5,0.2256887]
[1750555013581,1.12865721,2290.2,2290.0,4.36668576]
[1750555013864,0.04387209,2290.1,2289.5,0.2256887]
[1750555014063,9.885,2290.0,2289.9,4.36700292]
[1750555014219,9.884,2290.0,2289.9,4.36700292]
[1750555015066,11.033,2290.4,2290.3,4.36624023]
[1750555015239,2.196,2290.2,2289.6,0.815]
[1750555015553,0.04387209,2290.1,2290.0,4.36667042]
[1750555016457,9.876,2290.1,2290.0,4.36675092]
[1750555016620,0.55,2290.3,2290.1,4.36659907]
[1750555016821,10.46787209,2290.2,2290.1,4.36659907]
[1750555017050,0.55,2290.2,2290.1,4.36659907]
[1750555017254,10.424,2290.2,2290.1,4.36659907]
[1750555017657,0.55,2290.2,2290.1,4.36659907]
[1750555017948,0.55,2290.2,2290.1,4.36662154]
[1750555018150,10.419,2290.2,2290.0,4.36673531]
[1750555018352,10.419,2290.2,2289.6,5.18256587]
[1750555018353,0.55,2290.0,2289.6,5.18256587]
[1750555018522,0.55,2289.8,2289.5,0.2256887]
[1750555018850,1.3445,2289.6,2289.5,0.2256887]
[1750555019065,40.42593721,2289.6,2289.5,0.2256887]